Cogmind - Beta 10.2 --- EXPLORER MODE // 2021.04.05 @ 10:14:59 // Winter2019/RPGLIKE Player: Storm Mk9 Result: Destroyed by Lightning with EMDS Performance ------------- Evolutions (5) 2500 Regions Visited (22) 4400 Robots Destroyed (708) 3540 Value Destroyed (25307) 25307 Prototype IDs (54) 1080 Alien Tech Used (0) 0 Bonus (7412) 7412 TOTAL SCORE: 44239 Bonus ------- High Alert Combat Kills 2943 Follower Combat Kills 1153 Entered Garrisons 800 Used RIF Installer 2000 Network Hubs Disabled 200 Aligned with FarCom 300 Met Data Miner 300 Met Zhirov 300 Met R17 at Cetus 500 Friendly Fire -1084 Cogmind --------- Core Integrity 0/2250 Matter 525/600 Energy 650/650 System Corruption 16% Temperature Cool (0) Movement Treading (160) Location -5/Hub_04(d) Parts ------- > --- POWER (2) -------- Enhanced Fission Core Enhanced Fission Core > --- PROPULSION (4) --- Heavy Treads Heavy Treads > --- UTILITY (6) ------ Improved Targeting Computer Improved Targeting Computer Layered Medium Armor Plating System Backup Module System Backup Module PSU Rigger > --- WEAPON (5) ------- Wave Gun Gauss Rifle > --- INVENTORY (3) ---- (None) Peak State ------------ > --- POWER ------------ Enhanced Fission Core Enhanced Fission Core > --- PROPULSION ------- Armored Medium Treads Armored Medium Treads Heavy Treads > --- UTILITY ---------- Improved Targeting Computer Improved Targeting Computer Improved Particle Charger System Backup Module System Backup Module PSU Rigger > --- WEAPON ----------- Improved Arc Projector Improved Arc Projector Improved Arc Projector Long-range Missile Launcher Powered Hammer > --- INVENTORY -------- Dirty Bomb Trap Dirty Bomb Trap Fire Trap [Rating: 91] Favorites ----------- Power Improved Deuterium Engine Engine Improved Deuterium Engine Power Core Enhanced Fission Core Reactor Light Antimatter Reactor Propulsion Improved Medium Treads Treads Improved Medium Treads Utility Improved Targeting Computer Device PSU Rigger Processor Improved Targeting Computer Protection Improved Medium Armor Plating Weapon Improved Arc Projector Energy Gun Improved Arc Projector Energy Cannon EM Pulse Cannon Ballistic Gun Heavy Assault Rifle Ballistic Cannon Assault Cannon Launcher Long-range Missile Launcher Impact Weapon Powered Hammer Slashing Weapon Greatsword Build | -11 -10 -10 -10 -9 -8 -8 -8 -8 -7 -7 -7 -7 -6 -6 -6 -6 -5 -5 -5 -5 -5 -5 ------- Run | Scr Mat Min Exi Min Mat Gar Mat Gar Fac Gar Fac Gar Fac Low Low Dat Pro Fac Ext Cet Arc Hub Slots Evolved 13 | 8 . . . . 2 1 1 . . . 1 . . . . . . . . . . . Power 1 | 1 . . . . . . . . . . . . . . . . . . . . . . Propulsion 3 | 3 . . . . . . . . . . . . . . . . . . . . . . Utility 5 | 2 . . . . 1 . 1 . . . 1 . . . . . . . . . . . Weapon 4 | 2 . . . . 1 1 . . . . . . . . . . . . . . . . Parts Attached 128 | 10 9 . 1 3 14 1 12 2 6 12 11 . 21 2 1 . 4 11 1 . . 7 Power 19 | 2 1 . . 1 2 . 3 . 2 . . . . 1 1 . 2 4 . . . . Engine 10 | 2 1 . . 1 . . 3 . 2 . . . . 1 . . . . . . . . Core 7 | . . . . . 2 . . . . . . . . . . . 1 4 . . . . Reactor 2 | . . . . . . . . . . . . . . . 1 . 1 . . . . . Propulsion 22 | 2 2 . . 2 2 . 2 . . . 4 . 4 . . . . 3 1 . . . Treads 22 | 2 2 . . 2 2 . 2 . . . 4 . 4 . . . . 3 1 . . . Leg . | . . . . . . . . . . . . . . . . . . . . . . . Wheel . | . . . . . . . . . . . . . . . . . . . . . . . Hover . | . . . . . . . . . . . . . . . . . . . . . . . Flight . | . . . . . . . . . . . . . . . . . . . . . . . Utility 22 | 3 3 . 1 . 2 . 1 1 . 1 1 . 4 . . . . 4 . . . 1 Device 11 | . . . 1 . 1 . 1 . . . . . 4 . . . . 4 . . . . Storage . | . . . . . . . . . . . . . . . . . . . . . . . Processor 4 | 1 3 . . . . . . . . . . . . . . . . . . . . . Hackware . | . . . . . . . . . . . . . . . . . . . . . . . Protection 7 | 2 . . . . 1 . . 1 . 1 1 . . . . . . . . . . 1 Artifact . | . . . . . . . . . . . . . . . . . . . . . . . Weapon 65 | 3 3 . . . 8 1 6 1 4 11 6 . 13 1 . . 2 . . . . 6 Energy Gun 29 | 2 . . . . 1 . . . 4 7 4 . 6 . . . 1 . . . . 4 Energy Cannon 6 | . . . . . . . . . . 1 1 . 2 . . . 1 . . . . 1 Ballistic Gun 12 | 1 3 . . . 5 . 2 . . . . . . . . . . . . . . 1 Ballistic Cannon 8 | . . . . . . . 4 . . 2 . . 2 . . . . . . . . . Launcher 5 | . . . . . 2 1 . . . 1 . . 1 . . . . . . . . . Special Weapon . | . . . . . . . . . . . . . . . . . . . . . . . Impact Weapon 3 | . . . . . . . . . . . . . 2 1 . . . . . . . . Slashing Weapon 2 | . . . . . . . . 1 . . 1 . . . . . . . . . . . Piercing Weapon . | . . . . . . . . . . . . . . . . . . . . . . . Special Melee Weapon . | . . . . . . . . . . . . . . . . . . . . . . . Unidentified Prototypes 11 | . . . . . 2 . 1 . . . 2 . 3 . . . . 3 . . . . Parts Lost 10 | . . . . . . . 1 . . . . . 1 . . . . . . . . 8 Power 1 | . . . . . . . 1 . . . . . . . . . . . . . . . Propulsion . | . . . . . . . . . . . . . . . . . . . . . . . Utility 2 | . . . . . . . . . . . . . 1 . . . . . . . . 1 Weapon 7 | . . . . . . . . . . . . . . . . . . . . . . 7 Highest Loss Streak 3 | . . . . . . . 1 . . . . . 1 . . . . . . . . 3 Average Slot Usage (%) 94 | . 99 100 100 98 98 96 93 95 99 99 92 88 91 100 100 100 99 96 88 88 88 79 Engine 8 | . 16 16 16 14 6 . 7 12 11 12 11 11 11 11 9 5 1 . . . . . Core 2 | . . . . . 7 13 3 . . . . . . . . . 3 9 11 11 11 11 Treads 22 | . 32 33 33 33 28 26 25 25 25 25 24 23 22 23 23 23 23 19 11 11 11 11 Device 16 | . . . . 8 11 13 12 12 12 12 11 11 15 23 23 23 23 23 23 23 23 17 Processor 11 | . 12 25 24 16 14 13 12 12 12 12 11 11 11 11 11 11 11 11 11 11 11 11 Protection 1 | . 11 . . . 1 . . 1 6 6 5 5 2 . . . . . . . . . Energy Gun 14 | . 12 . . . . . . . 11 24 20 17 16 17 17 17 17 17 17 17 17 19 Ballistic Gun 4 | . 11 25 25 25 26 26 22 9 1 . . . . . . . . . . . . 1 Ballistic Cannon 2 | . . . . . . . 7 18 12 2 . . 2 . . . . . . . . . Launcher 2 | . . . . . . 3 . . . . . . 2 5 5 5 5 5 5 5 5 1 Impact Weapon 1 | . . . . . . . . . . . . . . 5 5 5 5 5 5 5 5 2 Slashing Weapon 1 | . . . . . . . . 2 4 . 2 5 2 . . . . . . . . . Naked Turns . | . . . . . . . . . . . . . . . . . . . . . . . Heaviest Build 67 | 16 18 17 19 21 31 34 43 47 49 59 55 53 66 57 59 59 67 67 62 62 62 63 Greatest Support 140 | 40 80 80 80 80 85 85 87 87 87 87 92 90 110 110 110 110 110 124 140 140 140 140 Greatest Overweight (x) 3 | 3 . . . . . . . . . . 1 . . . . . . 1 . . . . Average Overweight (x) . | . . . . . . . . . . . . . . . . . . . . . . . Largest Inventory Capacity 3 | 1 1 1 1 1 1 1 3 3 3 3 3 3 3 3 3 3 3 3 3 3 3 3 Average Capacity 2 | 1 1 1 1 1 1 1 1 3 3 3 3 3 3 3 3 3 3 3 3 3 3 3 Most Carried 3 | 1 1 1 1 1 1 1 3 3 3 3 3 1 3 3 3 3 3 3 3 3 3 3 Average Carried 2 | . . 1 . . . . 1 3 3 2 2 1 1 2 3 3 3 3 3 3 3 1 Final Capacity 3 | 1 1 1 1 1 1 1 3 3 3 3 3 3 3 3 3 3 3 3 3 3 3 3 Final Carried 3 | . 1 1 . 1 1 . 3 3 3 3 1 1 1 3 3 3 3 3 3 3 3 . Class Distribution -------------------- 92% | Hacker-Gunner 4% | Hacker-Mutant 3% | Hacker-Gladiator Dominant Class ---------------- Hacker-Gunner | -10/Materials Hacker-Gunner | -10/Mines Hacker-Gunner | -10/Exiles Hacker-Gunner | -9/Mines Hacker-Gunner | -8/Materials Hacker-Gunner | -8/Garrison Hacker-Gunner | -8/Materials Hacker-Gunner | -8/Garrison Hacker-Gunner | -7/Factory Hacker-Gunner | -7/Garrison Hacker-Gunner | -7/Factory Hacker-Gunner | -7/Garrison Hacker-Gunner | -6/Factory Hacker-Gunner | -6/Lower Caves Hacker-Gunner | -6/Lower Caves Hacker-Gunner | -6/Data Miner Hacker-Gunner | -5/Proximity Caves Hacker-Gunner | -5/Factory Hacker-Gunner | -5/Extension Hacker-Gunner | -5/Cetus Hacker-Gunner | -5/Archives Hacker-Gunner | -5/Hub_04(d) Resources | -11 -10 -10 -10 -9 -8 -8 -8 -8 -7 -7 -7 -7 -6 -6 -6 -6 -5 -5 -5 -5 -5 -5 ----------- Run | Scr Mat Min Exi Min Mat Gar Mat Gar Fac Gar Fac Gar Fac Low Low Dat Pro Fac Ext Cet Arc Hub Matter Collected 6870 | 269 118 . . 107 891 165 985 733 606 261 160 39 986 59 25 . 90 415 220 165 40 536 Remotely . | . . . . . . . . . . . . . . . . . . . . . . . Salvage Created 31402 | . 369 . . . 1355 327 1053 480 621 2380 2579 423 14338 259 634 . 243 2673 620 244 516 2288 Parts 1610 | . 12 . . . 93 28 83 46 23 87 138 28 676 19 26 . 15 116 35 31 28 126 Haulers Intercepted 29 | . 2 . . . 4 . 5 . . . 4 . 6 . . . . 7 . . . 1 Recyclers Shooed 29 | . . . . . . . . . . . 1 . 28 . . . . . . . . . Parts Field Recycled . | . . . . . . . . . . . . . . . . . . . . . . . Retrieved Matter . | . . . . . . . . . . . . . . . . . . . . . . . Parts Self-Destructed . | . . . . . . . . . . . . . . . . . . . . . . . Prevented . | . . . . . . . . . . . . . . . . . . . . . . . Kills | -11 -10 -10 -10 -9 -8 -8 -8 -8 -7 -7 -7 -7 -6 -6 -6 -6 -5 -5 -5 -5 -5 -5 ------- Run | Scr Mat Min Exi Min Mat Gar Mat Gar Fac Gar Fac Gar Fac Low Low Dat Pro Fac Ext Cet Arc Hub Combat Hostiles Destroyed 416 | . 5 . . . 25 13 25 23 11 37 35 14 97 6 17 . 6 32 11 16 12 31 Melee 11 | . . . . . . . . 4 . . 2 . . 2 . . 1 2 . . . . Guns 204 | . 5 . . . 23 11 18 11 4 19 24 11 38 2 6 . 1 10 1 2 1 17 Cannons 40 | . . . . . . . 7 8 7 12 1 . 5 . . . . . . . . . AOE 114 | . . . . . 2 2 . . . 3 6 2 34 . 9 . 4 17 9 9 11 6 Classes Destroyed 19 | . 5 . . . 5 . . 2 1 . 1 . 2 1 . . 1 . . . 1 . Worker 78 | . . . . . 2 . . . . . 3 . 56 . . . . 5 1 . . 11 Builder 80 | . . . . . 2 . 5 . . . 6 . 60 . . . . 4 2 . . 1 Tunneler 7 | . . . . . . . . . . . . . 6 . . . . . 1 . . . Hauler 30 | . 2 . . . 4 . 5 . . . 4 . 7 . . . . 7 . . . 1 Recycler 52 | . 1 . . . 1 . . . 4 . 3 . 41 . . . . 1 1 . . . Minesweeper 2 | . . . . . . . . . . . . . . 1 . . 1 . . . . . Mechanic 2 | . . . . . . . . . . . 1 . 1 . . . . . . . . . Operator 16 | . . . . . 3 . 3 . 1 . 1 . 4 . . . . 3 . . . 1 Watcher 23 | . 1 . . . 2 . 2 . . . 5 . 4 . . . . 4 2 2 . 1 Swarmer 78 | . 2 . . . 5 4 5 8 . 6 4 9 8 2 10 . 5 4 3 . . 3 Grunt 210 | . 3 . . . 14 9 14 9 7 20 23 4 57 1 6 . . 21 4 3 8 7 Brawler 7 | . . . . . . . . 1 . 3 . 1 1 . . . . . . . . 1 Duelist 8 | . . . . . . . . 3 . 2 . . 2 . . . . . . . . 1 Protector 3 | . . . . . . . . . . . . . . . . . . . . . 1 2 Sentry 45 | . . . . . 5 . 6 2 2 6 3 . 11 1 1 . . 1 1 . . 6 Hunter 24 | . . . . . 1 . . . 1 . 1 . 9 . . . . 2 . 3 3 4 Programmer 30 | . . . . . . . . . 1 . 4 . 11 2 . . . 4 2 2 . 4 Behemoth 3 | . . . . . . . . . . . . . 1 . . . . . 1 . . 1 Cetus Guard 8 | . . . . . . . . . . . . . . . . . . . . 8 . . Lightning 2 | . . . . . . . . . . . . . . . . . . . . . . 2 Assembled 1 | . . . . . . . . . . . . . . . . . 1 . . . . . Best Kill Streak 12 | . 4 . . . 5 4 5 5 4 9 8 6 12 3 11 . 4 8 6 5 6 5 Combat Bots Only 11 | . 3 . . . 4 4 5 5 3 9 5 6 6 3 11 . 4 7 4 5 6 5 Max Kills in Single Turn 6 | . 1 . . . 2 2 3 1 2 2 4 2 5 1 6 . 3 4 3 2 3 3 Gunslinging 1 | . . . . . 1 1 1 . . . 1 . . . . . . . . . . 1 Exploded 6 | . . . . . 1 2 . . . 1 2 1 3 . 6 . 3 4 3 2 3 3 Melee 1 | . . . . . . . . 1 . . 1 . . 1 . . 1 1 . . . . Uniques/NPCs Destroyed . | . . . . . . . . . . . . . . . . . . . . . . . Combat | -11 -10 -10 -10 -9 -8 -8 -8 -8 -7 -7 -7 -7 -6 -6 -6 -6 -5 -5 -5 -5 -5 -5 -------- Run | Scr Mat Min Exi Min Mat Gar Mat Gar Fac Gar Fac Gar Fac Low Low Dat Pro Fac Ext Cet Arc Hub Damage Taken 16411 | . 71 . . 16 505 191 564 436 258 1043 888 318 3820 321 317 . 182 1176 453 1342 1010 3500 Core 12391 | . 50 . . 12 382 149 439 339 180 759 661 220 2798 250 246 . 140 935 363 1048 801 2619 Absorbed by Shields 244 | . . . . . . . . . . . . . 179 . . . . 65 . . . . Reduced by Siege Mode 4 | . . . . . . . . . . . . . . . . . . . . . . 4 Redirected to Core 11273 | . 50 . . 12 370 140 407 300 160 695 637 220 2514 233 238 . 133 797 293 946 691 2437 Core Remaining (%) 99 | 100 . . . 98 . . . 98 . . . 99 . . . . 100 . . . . . Volleys Fired 1207 | . 17 . . . 55 18 44 28 40 63 75 32 526 8 21 . 18 85 23 39 10 105 Largest 5 | . 3 . . . 4 5 5 5 5 5 5 3 5 3 3 . 3 4 4 4 4 5 Hottest 330 | . 110 . . . 109 132 182 182 302 330 318 195 291 195 195 . 195 238 238 238 238 329 Shots Fired 3976 | . 49 . . . 201 64 202 110 123 304 283 96 1520 24 61 . 50 248 74 135 38 394 Gun 3573 | . 49 . . . 198 61 148 49 60 237 253 96 1472 24 60 . 48 228 60 108 30 392 Cannon 302 | . . . . . . . 54 61 63 64 30 . 29 . . . . . . . . 1 Launcher 101 | . . . . . 3 3 . . . 3 . . 19 . 1 . 2 20 14 27 8 1 Special . | . . . . . . . . . . . . . . . . . . . . . . . Kinetic 765 | . 17 . . . 198 61 202 110 71 18 . . 29 . . . . . . . . 59 Thermal 255 | . 32 . . . . . . . 52 49 . . . . . . . . . . . 122 Explosive 95 | . . . . . . . . . . 3 . . 19 . 1 . 2 20 14 27 8 1 Electromagnetic 2861 | . . . . . 3 3 . . . 234 283 96 1472 24 60 . 48 228 60 108 30 212 Robot Hit Streak 91 | . 43 . . . 74 19 60 28 30 38 51 72 86 41 35 . 28 71 57 91 10 74 Robot Miss Streak 2 | . . . . . 2 1 2 2 2 1 1 1 2 1 1 . 1 2 1 2 2 1 Penetration Max 1 | . . . . . . . . . . . . . . . . . . . . . . 1 Secondary Targets 43 | . 1 . . . 7 4 2 1 . 1 3 4 11 1 1 . . . . 1 . 6 Max Gunslinging Chain 1 | . 1 . . . 1 1 1 1 . 1 1 1 1 1 1 . . . . 1 . 1 Shots Hit Robots 3139 | . 43 . . . 150 37 128 73 75 228 202 67 1233 31 55 . 46 222 66 113 28 342 Core Hits 1493 | . 17 . . . 63 20 56 33 26 88 102 29 614 8 30 . 18 114 46 72 45 112 Critical Hits 7 | . . . . . 2 1 1 1 2 . . . . . . . . . . . . . Critical Kills 3 | . . . . . 1 1 . 1 . . . . . . . . . . . . . . Critical Parts Destroyed 3 | . . . . . 1 . 1 . 1 . . . . . . . . . . . . . Melee Attacks 55 | . . . . . . . . 17 . . 2 1 . 11 . . 2 14 8 . . . Impact 35 | . . . . . . . . . . . . . . 11 . . 2 14 8 . . . Slashing 20 | . . . . . . . . 17 . . 2 1 . . . . . . . . . . Piercing . | . . . . . . . . . . . . . . . . . . . . . . . Sneak Attacks 2 | . . . . . . . . . . . 1 1 . . . . . . . . . . Combat Hostiles 2 | . . . . . . . . . . . 1 1 . . . . . . . . . . Follow-up Attacks . | . . . . . . . . . . . . . . . . . . . . . . . Damage Inflicted 72141 | . 458 . . . 2571 822 3294 1802 1776 6107 4563 1125 23236 703 1577 . 1140 6187 3127 3860 2385 7408 Guns 44048 | . 458 . . . 2462 673 2258 946 860 4065 2719 772 15686 299 783 . 523 3093 837 1330 455 5829 Cannons 4879 | . . . . . . . 604 475 916 1374 359 . 1105 . . . . . . . . 46 Explosions 21637 | . . . . . 109 149 432 . . 668 1270 236 6445 27 794 . 548 2676 2290 2530 1930 1533 Melee 1577 | . . . . . . . . 381 . . 215 117 . 377 . . 69 418 . . . . Ramming . | . . . . . . . . . . . . . . . . . . . . . . . Kinetic 11361 | . 119 . . . 2462 673 2862 1421 1084 404 . . 1105 . . . . . . . . 1231 Thermal 13305 | . 339 . . . . 42 284 . 692 1561 1270 236 4284 27 327 . 23 293 303 434 . 3190 Explosive 11887 | . . . . . . . 148 . . 114 . . 2097 . 467 . 525 2383 1987 2096 1930 140 Electromagnetic 34011 | . . . . . 109 107 . . . 4028 3078 772 15750 299 783 . 523 3093 837 1330 455 2847 Impact 864 | . . . . . . . . . . . . . . 377 . . 69 418 . . . . Slashing 713 | . . . . . . . . 381 . . 215 117 . . . . . . . . . . Piercing . | . . . . . . . . . . . . . . . . . . . . . . . Highest Corruption 18 | . . . . . . . 1 1 2 2 3 3 18 4 . . . 3 . . . 16 Average Corruption 6 | . . . . . . . 1 1 2 2 2 3 10 2 . . . 1 . . . 8 Corruption Purged 28 | . . . . . . . . . . . . . 16 6 . . . 6 . . . . Effects 508 | . . . . . . . 2 8 1 22 41 16 404 4 . . . 5 . . . 5 Message Errors 105 | . . . . . . . 1 2 . 3 15 6 73 1 . . . 3 . . . 1 Matter Fused 59 | . . . . . . . . . . . 6 5 46 2 . . . . . . . . Heat Flow Errors 32 | . . . . . . . . . . 4 6 1 21 . . . . . . . . . Energy Discharges 33 | . . . . . . . . 1 . 3 3 . 26 . . . . . . . . . Parts Rejected 4 | . . . . . . . . . . . . . 4 . . . . . . . . . Data Loss (minor) 38 | . . . . . . . . 1 . 2 3 1 30 1 . . . . . . . . Data Loss (major) 6 | . . . . . . . . . . . . . 6 . . . . . . . . . Misfires 13 | . . . . . . . . . . . . . 13 . . . . . . . . . Alerts 2 | . . . . . . . . . . . . . 2 . . . . . . . . . Misdirections 23 | . . . . . . . . . . . . . 23 . . . . . . . . . Targeting Errors 165 | . . . . . . . 1 4 1 9 6 3 135 . . . . 2 . . . 4 Weapon Failures 28 | . . . . . . . . . . 1 2 . 25 . . . . . . . . . Overload Shots . | . . . . . . . . . . . . . . . . . . . . . . . Overflow Damage 1255 | . . . . . 10 . 148 13 23 26 82 . 343 42 8 . 33 120 212 . 5 190 Projectiles 107 | . . . . . . . . 9 23 26 19 . 30 . . . . . . . . . Explosions 1085 | . . . . . 10 . 148 . . . 63 . 313 1 8 . 33 102 212 . 5 190 Melee 63 | . . . . . . . . 4 . . . . . 41 . . . 18 . . . . Knockbacks 25 | . . . . . . . 3 2 5 . . . 13 . . . 1 1 . . . . Impact 2 | . . . . . . . . . . . . . . . . . 1 1 . . . . Kinetic 23 | . . . . . . . 3 2 5 . . . 13 . . . . . . . . . Secondary . | . . . . . . . . . . . . . . . . . . . . . . . Self-Inflicted Damage 846 | . . . . . 17 . 84 . . 91 179 42 230 . 32 . . 45 14 . 2 110 Shots 33 | . . . . . 1 . 2 . . 4 6 1 12 . 1 . . 2 1 . 1 2 Rammed . | . . . . . . . . . . . . . . . . . . . . . . . Targets Rammed . | . . . . . . . . . . . . . . . . . . . . . . . Kicked . | . . . . . . . . . . . . . . . . . . . . . . . Crushed . | . . . . . . . . . . . . . . . . . . . . . . . Highest Temperature 614 | . 614 . . . . 5 108 155 72 462 268 174 264 . 11 . 3 19 12 19 51 291 Average Temperature 98 | . 194 . . . . 5 27 46 22 106 66 91 79 . 11 . 3 9 7 6 22 99 Received Heat Transfer 5540 | . 63 . . . 279 144 351 279 162 390 261 81 1546 54 192 . 69 448 117 174 387 543 Effects 27 | . 22 . . . . . . . . 1 . . . . . . . . . . . 4 Shutdowns 7 | . 6 . . . . . . . . 1 . . . . . . . . . . . . Energy Bleed 5 | . 4 . . . . . . . . . . . . . . . . . . . . 1 Interference 10 | . 7 . . . . . . . . . . . . . . . . . . . . 3 Damage (minor) 1 | . 1 . . . . . . . . . . . . . . . . . . . . . Damage (major) 4 | . 4 . . . . . . . . . . . . . . . . . . . . . Siege Activations 1 | . . . . . . . . . . . . . . . . . . . . . . 1 Total Turns 16 | . . . . . . . . . . . . . . . . . . . . . . 16 Longest Duration 16 | . . . . . . . . . . . . . . . . . . . . . . 16 Robots Corrupted 66 | . . . . . . . . . . 8 2 1 26 3 2 . 1 5 1 5 1 11 Combat Hostiles 47 | . . . . . . . . . . 3 2 1 20 2 2 . . 3 1 5 . 8 Parts Fried 282 | . . . . . . . . . . 30 24 2 157 1 7 . 1 24 5 3 3 25 Impact Corruptions 7 | . . . . . . . . . . . . . . 3 . . . 4 . . . . Robots Melted . | . . . . . . . . . . . . . . . . . . . . . . . Combat Hostiles . | . . . . . . . . . . . . . . . . . . . . . . . Parts Melted 13 | . . . . . . . . . 4 1 . . 3 . . . . 2 . . . 3 Heat Transferred 13118 | . 917 . . . . 50 200 . 1369 1560 1000 150 3038 50 300 . 50 300 150 300 . 3684 Parts Sabotaged . | . . . . . . . . . . . . . . . . . . . . . . . Parts Stolen . | . . . . . . . . . . . . . . . . . . . . . . . Parts Stripped . | . . . . . . . . . . . . . . . . . . . . . . . Power Chain Reactions 74 | . . . . . 1 3 . . . 7 9 4 36 1 2 . 1 4 1 2 . 3 Missiles Intercepted . | . . . . . . . . . . . . . . . . . . . . . . . Alert | -11 -10 -10 -10 -9 -8 -8 -8 -8 -7 -7 -7 -7 -6 -6 -6 -6 -5 -5 -5 -5 -5 -5 ------- Run | Scr Mat Min Exi Min Mat Gar Mat Gar Fac Gar Fac Gar Fac Low Low Dat Pro Fac Ext Cet Arc Hub Peak Influence 1379 | . 149 3 . . 351 447 635 839 588 1379 938 814 793 . . . . 775 550 577 444 818 Initial 537 | . . 3 . . . 63 159 165 327 249 537 300 317 . . . . . 237 231 128 106 Average 355 | . 52 3 . . 157 262 251 554 446 955 657 595 243 . . . . 355 262 378 281 361 Maximum Alert Level 4 | . . . . . 1 2 2 3 2 4 3 3 3 . . . . 3 2 2 2 3 Low Security (%) 34 | 100 100 100 . 100 62 41 45 5 . . . . 45 . . . . 40 18 . 42 16 Level 1 27 | . . . . . 37 40 39 18 33 11 . 20 34 . . . . 10 70 47 23 60 Level 2 26 | . . . . . . 18 15 56 66 18 58 67 17 . . . . 38 10 52 34 15 Level 3 8 | . . . . . . . . 19 . 24 41 11 2 . . . . 10 . . . 7 Level 4 2 | . . . . . . . . . . 45 . . . . . . . . . . . . Level 5 . | . . . . . . . . . . . . . . . . . . . . . . . High Security . | . . . . . . . . . . . . . . . . . . . . . . . Max Security . | . . . . . . . . . . . . . . . . . . . . . . . Squads Dispatched 108 | . 1 . . . 6 . 5 . 5 . 16 . 46 . . . . 16 1 . . 12 Investigation 30 | . 1 . . . 1 . 2 . 3 . 7 . 11 . . . . 5 . . . . Extermination 23 | . . . . . . . . . 1 . 4 . 12 . . . . 4 . . . 2 Reinforcement 32 | . . . . . 4 . 3 . . . 2 . 13 . . . . 5 1 . . 4 Assault 3 | . . . . . . . . . . . . . . . . . . 2 . . . 1 Garrison 20 | . . . . . 1 . . . 1 . 3 . 10 . . . . . . . . 5 Intercept . | . . . . . . . . . . . . . . . . . . . . . . . Construction Impeded 13 | . . . . . 1 . 1 . . . . . 8 . . . . 1 1 . . 1 Haulers Reinforced 6 | . . . . . . . . . . . . . 2 . . . . 3 . . . 1 Stealth | -11 -10 -10 -10 -9 -8 -8 -8 -8 -7 -7 -7 -7 -6 -6 -6 -6 -5 -5 -5 -5 -5 -5 --------- Run | Scr Mat Min Exi Min Mat Gar Mat Gar Fac Gar Fac Gar Fac Low Low Dat Pro Fac Ext Cet Arc Hub Distress Signals 19 | . . . . . 2 . 2 . . . 2 . 3 . . . . 1 3 1 . 5 Communications Jammed . | . . . . . . . . . . . . . . . . . . . . . . . Distress Signals . | . . . . . . . . . . . . . . . . . . . . . . . Times Spotted 596 | . 5 . . . 39 13 34 24 13 44 47 19 142 6 22 . 17 56 17 20 26 52 Peak Tracking Total 16 | . 2 . . . 5 3 5 5 4 10 4 3 5 5 8 . 7 6 5 5 16 10 Tactical Retreats 31 | . . . . . 1 . . . . 6 2 2 9 . 1 . 2 4 . . . 4 Traps | -11 -10 -10 -10 -9 -8 -8 -8 -8 -7 -7 -7 -7 -6 -6 -6 -6 -5 -5 -5 -5 -5 -5 ------- Run | Scr Mat Min Exi Min Mat Gar Mat Gar Fac Gar Fac Gar Fac Low Low Dat Pro Fac Ext Cet Arc Hub Traps Triggered 25 | . . . . 1 . 1 1 2 . 6 5 . 7 . . . . 1 . . . 1 Indirectly 2 | . . . . . . 1 . . . . . . . . . . . . . . . 1 Trap Hack Attempts . | . . . . . . . . . . . . . . . . . . . . . . . Triggered . | . . . . . . . . . . . . . . . . . . . . . . . Disarmed . | . . . . . . . . . . . . . . . . . . . . . . . Reprogrammed 1 | . . . . . . . 1 . . . . . . . . . . . . . . . Reused 1 | . . . . . . . . . . . . . . . . . . . . . . 1 Traps Extracted . | . . . . . . . . . . . . . . . . . . . . . . . Installed 13 | . . . . . . . . . . . . . . . . . 10 . . . . 3 Triggered 3 | . . . . . . . . . . . . 1 . 1 . . . . . . . 1 Power Sources Rigged 42 | . . . . . 14 3 17 2 . . 1 . . . . . 4 1 . . . . Exploded 18 | . . . . . 6 1 9 1 . . 1 . . . . . . . . . . . Machines | -11 -10 -10 -10 -9 -8 -8 -8 -8 -7 -7 -7 -7 -6 -6 -6 -6 -5 -5 -5 -5 -5 -5 ---------- Run | Scr Mat Min Exi Min Mat Gar Mat Gar Fac Gar Fac Gar Fac Low Low Dat Pro Fac Ext Cet Arc Hub Machines Disabled 126 | . . . . . 5 2 10 4 4 3 6 3 48 . 2 . 1 7 4 6 3 18 Max in Single Turn 11 | . . . . . 1 1 2 1 1 1 2 1 4 . 1 . . 2 2 4 3 11 Garrison Relay 9 | . . . . . . 2 . 3 . 1 . 3 . . . . . . . . . . Phase Generator 1 | . . . . . . . . . . 1 . . . . . . . . . . . . Network Hub 1 | . . . . . . . . . . . . . . . . . . . . . . 1 Machines Sabotaged . | . . . . . . . . . . . . . . . . . . . . . . . Garrisons Compromised . | . . . . . . . . . . . . . . . . . . . . . . . Overloaded Fab Kills . | . . . . . . . . . . . . . . . . . . . . . . . Fab Network Shutdowns 1 | . . . . . . . . . . . . . 1 . . . . . . . . . Hacking | -11 -10 -10 -10 -9 -8 -8 -8 -8 -7 -7 -7 -7 -6 -6 -6 -6 -5 -5 -5 -5 -5 -5 --------- Run | Scr Mat Min Exi Min Mat Gar Mat Gar Fac Gar Fac Gar Fac Low Low Dat Pro Fac Ext Cet Arc Hub Machines Accessed 72 | . 3 . 1 1 6 . 9 . 4 . 8 . 19 3 . 4 . 10 1 2 . 1 Terminals 42 | . 2 . . . 4 . 7 . 2 . 5 . 10 . . . . 8 1 2 . 1 Fabricators 4 | . . . . . . . . . . . 1 . 2 . . . . 1 . . . . Repair Stations 3 | . . . . . . . . . . . . . 2 . . . . 1 . . . . Recycling Units 7 | . 1 . . . 1 . 1 . 1 . 1 . 2 . . . . . . . . . Scanalyzers . | . . . . . . . . . . . . . . . . . . . . . . . Garrison Access 7 | . . . . . 1 . 1 . 1 . 1 . 3 . . . . . . . . . Total Hacks 247 | . 8 . 1 1 15 . 28 . 9 . 22 . 67 7 . 25 . 53 4 4 . 3 Successful 175 | . 7 . 1 1 10 . 19 . 4 . 10 . 41 7 . 25 . 39 4 4 . 3 Failed 72 | . 1 . . . 5 . 9 . 5 . 12 . 26 . . . . 14 . . . . Catastrophic 14 | . . . . . 1 . . . 1 . 5 . 6 . . . . 1 . . . . Database Lockouts . | . . . . . . . . . . . . . . . . . . . . . . . Manual 65 | . 2 . 1 . 4 . 9 . . . 10 . 17 1 . . . 18 . . . 3 Terminals 165 | . 7 . . . 11 . 26 . 4 . 13 . 46 . . . . 47 4 4 . 3 Fabricators 15 | . . . . . . . . . . . 3 . 8 . . . . 4 . . . . Repair Stations 7 | . . . . . . . . . . . . . 5 . . . . 2 . . . . Recycling Units 18 | . 1 . . . 3 . 1 . 3 . 5 . 5 . . . . . . . . . Scanalyzers . | . . . . . . . . . . . . . . . . . . . . . . . Garrison Access 8 | . . . . . 1 . 1 . 2 . 1 . 3 . . . . . . . . . Terminal Hacks 136 | . 5 . 1 1 6 . 15 . 1 . 5 . 25 7 . 25 . 34 4 4 . 3 Record 44 | . 1 . . . 1 . 2 . . . 1 . 9 5 . 11 . 11 . 3 . . Part Schematic 9 | . . . . . . . . . . . 1 . 1 . . 6 . 1 . . . . Robot Schematic 8 | . . . . . . . . . . . 1 . 1 . . 5 . 1 . . . . Robot Analysis 2 | . . . . . . . . . . . . . 1 . . . . . 1 . . . Prototype ID Bank 8 | . . . . . . . 2 . . . . . 1 . . 3 . 2 . . . . Open Door 4 | . . . . 1 . . . . . . . . . 2 . . . . . 1 . . Level Access Points 3 | . . . . . . . . . . . . . 1 . . . . 1 . . . 1 Branch Access Points 7 | . . . . . 1 . 1 . . . 1 . 2 . . . . 1 . . . 1 Emergency Access Points 3 | . . . . . . . . . . . . . 1 . . . . 2 . . . . Machine Index 1 | . . . . . . . . . 1 . . . . . . . . . . . . . Terminal Index 3 | . 1 . . . . . . . . . . . . . . . . 1 1 . . . Fabricator Index 1 | . . . . . . . . . . . . . . . . . . 1 . . . . Garrison Index 2 | . . . . . . . 1 . . . . . . . . . . . . . . 1 Alert Level 7 | . 1 . . . 2 . 3 . . . 1 . . . . . . . . . . . Unreport Threat 1 | . . . . . . . 1 . . . . . . . . . . . . . . . Locate Traps 4 | . . . . . . . 2 . . . . . 1 . . . . 1 . . . . Reprogram Traps 1 | . . . . . . . 1 . . . . . . . . . . . . . . . Dispatch Records 5 | . . . . . . . . . . . . . 2 . . . . 3 . . . . Maintenance Status 4 | . . . . . . . 1 . . . . . 2 . . . . 1 . . . . Security Status 1 | . . . . . . . . . . . . . 1 . . . . . . . . . Surveillance Status 2 | . 1 . . . . . . . . . . . . . . . . 1 . . . . Patrol Status 1 | . . . . . . . . . . . . . . . . . . 1 . . . . Transport Status 3 | . . . . . 1 . . . . . . . . . . . . 1 1 . . . Investigation Status 1 | . . . . . . . . . . . . . . . . . . 1 . . . . Extermination Status 1 | . . . . . . . . . . . . . 1 . . . . . . . . . Reinforcement Status 1 | . . . . . 1 . . . . . . . . . . . . . . . . . Hauler Manifests 1 | . . . . . . . . . . . . . . . . . . 1 . . . . Registered Components 4 | . 1 . . . . . . . . . . . 1 . . . . 1 1 . . . Zone Layout 3 | . . . . . . . 1 . . . . . . . . . . 2 . . . . EX-Prototype ID Bank 1 | . . . 1 . . . . . . . . . . . . . . . . . . . Fabricator Hacks 12 | . . . . . . . . . . . 2 . 6 . . . . 4 . . . . Network Status 1 | . . . . . . . . . . . . . 1 . . . . . . . . . Load Schematic 6 | . . . . . . . . . . . 1 . 3 . . . . 2 . . . . Build 5 | . . . . . . . . . . . 1 . 2 . . . . 2 . . . . Repair Station Hacks 5 | . . . . . . . . . . . . . 4 . . . . 1 . . . . Scan Component 2 | . . . . . . . . . . . . . 2 . . . . . . . . . Repair 2 | . . . . . . . . . . . . . 2 . . . . . . . . . Refit 1 | . . . . . . . . . . . . . . . . . . 1 . . . . Recycling Unit Hacks 10 | . 1 . . . 2 . 1 . 1 . 2 . 3 . . . . . . . . . Report Inventory 7 | . 1 . . . 1 . 1 . 1 . 1 . 2 . . . . . . . . . Retrieve Components 3 | . . . . . 1 . . . . . 1 . 1 . . . . . . . . . Scanalyzer . | . . . . . . . . . . . . . . . . . . . . . . . Garrison Access Hacks 8 | . . . . . 1 . 1 . 2 . 1 . 3 . . . . . . . . . Unlock Access 7 | . . . . . 1 . 1 . 1 . 1 . 3 . . . . . . . . . Coupler Status 1 | . . . . . . . . . 1 . . . . . . . . . . . . . Unauthorized Hacks 4 | . 1 . . . 1 . 2 . . . . . . . . . . . . . . . Terminals 4 | . 1 . . . 1 . 2 . . . . . . . . . . . . . . . Botnet 2 | . 1 . . . . . 1 . . . . . . . . . . . . . . . Detonate 2 | . . . . . 1 . 1 . . . . . . . . . . . . . . . Fabricators . | . . . . . . . . . . . . . . . . . . . . . . . Repair Stations . | . . . . . . . . . . . . . . . . . . . . . . . Recycling Units . | . . . . . . . . . . . . . . . . . . . . . . . Scanalyzers . | . . . . . . . . . . . . . . . . . . . . . . . Garrison Access . | . . . . . . . . . . . . . . . . . . . . . . . Data Cores Recovered 6 | . . . . . . . 1 . 1 . . . 2 . . . . 2 . . . . Used 5 | . . . . . . . 1 . 1 . . . 1 . . . . 2 . . . . Hacking Detections 55 | . 2 . . . 4 . 7 . 4 . 8 . 18 . . . . 10 1 . . 1 Full Trace Events 26 | . 1 . . . 1 . 2 . 3 . 6 . 9 . . . . 4 . . . . Feedback Events 4 | . . . . . . . . . . . 1 . 3 . . . . . . . . . Corruption 4 | . . . . . . . . . . . 1 . 3 . . . . . . . . . Feedback Blocked . | . . . . . . . . . . . . . . . . . . . . . . . Robot Schematics Acquired 8 | . . . . . . . . . . . 1 . 1 . . 5 . 1 . . . . Robots Built 5 | . . . . . . . . . . . 1 . . . . . . 4 . . . . Matter 723 | . . . . . . . . . . . 153 . . . . . . 570 . . . . Time 232 | . . . . . . . . . . . 81 . . . . . . 151 . . . . Total Robot Build Rating 25 | . . . . . . . . . . . 1 . . . . . . 24 . . . . Part Schematics Acquired 9 | . . . . . . . . . . . 1 . 1 . . 6 . 1 . . . . Parts Built 2 | . . . . . . . . . . . . . 2 . . . . . . . . . Matter 168 | . . . . . . . . . . . . . 168 . . . . . . . . . Time 42 | . . . . . . . . . . . . . 42 . . . . . . . . . Total Part Build Rating 8 | . . . . . . . . . . . . . 8 . . . . . . . . . Parts Repaired 2 | . . . . . . . . . . . . . 2 . . . . . . . . . Time 29 | . . . . . . . . . . . . . 29 . . . . . . . . . Parts Recycled . | . . . . . . . . . . . . . . . . . . . . . . . Recycled Matter . | . . . . . . . . . . . . . . . . . . . . . . . Retrieved Matter . | . . . . . . . . . . . . . . . . . . . . . . . Retrieved Components 16 | . . . . . 5 . . . . . 1 . 10 . . . . . . . . . Parts Scanalyzed . | . . . . . . . . . . . . . . . . . . . . . . . Part Schematics Acquired . | . . . . . . . . . . . . . . . . . . . . . . . Parts Damaged . | . . . . . . . . . . . . . . . . . . . . . . . Bothacking | -11 -10 -10 -10 -9 -8 -8 -8 -8 -7 -7 -7 -7 -6 -6 -6 -6 -5 -5 -5 -5 -5 -5 ------------ Run | Scr Mat Min Exi Min Mat Gar Mat Gar Fac Gar Fac Gar Fac Low Low Dat Pro Fac Ext Cet Arc Hub Used RIF Installer 4 | . . . . . . 1 . 1 . 1 . 1 . . . . . . . . . . Coupler Efficiency 2 | . . . . . . . . 1 . 1 . . . . . . . . . . . . Command Fork 1 | . . . . . . . . . . . . 1 . . . . . . . . . . Robots Hacked . | . . . . . . . . . . . . . . . . . . . . . . . Non-combat . | . . . . . . . . . . . . . . . . . . . . . . . Combat . | . . . . . . . . . . . . . . . . . . . . . . . Robot Hacks Applied . | . . . . . . . . . . . . . . . . . . . . . . . Relay Couplers Released 17 | . . . . . . 4 . 4 . 2 . 6 1 . . . . . . . . . Machine Destruction 16 | . . . . . . 4 . 4 . 2 . 6 . . . . . . . . . . Programmers 1 | . . . . . . . . . . . . . 1 . . . . . . . . . Robots Rewired 26 | . . . . . . . . . . 3 . 1 18 . 1 . . 2 . . . 1 Allies Hacked 2 | . . . . . . . . . . . . . 2 . . . . . . . . . Hacks Repelled . | . . . . . . . . . . . . . . . . . . . . . . . Allies | -11 -10 -10 -10 -9 -8 -8 -8 -8 -7 -7 -7 -7 -6 -6 -6 -6 -5 -5 -5 -5 -5 -5 -------- Run | Scr Mat Min Exi Min Mat Gar Mat Gar Fac Gar Fac Gar Fac Low Low Dat Pro Fac Ext Cet Arc Hub Total Allies 43 | . . . . . . . . . . 3 4 1 21 . 1 . 1 6 5 . . 1 Largest Group 5 | . . . . . . . . . . 3 3 1 5 . 1 . 1 4 5 2 . 1 Highest-Rated Group 203 | . . . . . . . . . . 114 93 19 128 . 12 . 94 203 134 62 . 15 Highest-Rated Ally 94 | . . . . . . . . . . 38 31 19 41 . 12 . 94 94 31 31 . 15 Total Orders 12 | . . . . . . . . . . . 3 . 8 . . . . 1 . . . . STAY 5 | . . . . . . . . . . . 3 . 2 . . . . . . . . . FOLLOW 1 | . . . . . . . . . . . . . 1 . . . . . . . . . GUARD 1 | . . . . . . . . . . . . . 1 . . . . . . . . . AID 1 | . . . . . . . . . . . . . . . . . . 1 . . . . DROP 2 | . . . . . . . . . . . . . 2 . . . . . . . . . PICKUP 1 | . . . . . . . . . . . . . 1 . . . . . . . . . COLLECT 1 | . . . . . . . . . . . . . 1 . . . . . . . . . Ally Attacks 250 | . . . . . . . . . . 5 21 . 55 . 20 . 19 72 57 1 . . Total Damage 5384 | . . . . . . . . . . 192 355 . 678 . 243 . 552 2307 1036 21 . . Kills 38 | . . . . . . . . . . 1 2 . 4 . 2 . 9 13 7 . . . Allies Corrupted 6 | . . . . . . . . . . 2 . . 3 . . . . 1 . . . . Allies Melted 1 | . . . . . . . . . . . 1 . . . . . . . . . . . Intel | -11 -10 -10 -10 -9 -8 -8 -8 -8 -7 -7 -7 -7 -6 -6 -6 -6 -5 -5 -5 -5 -5 -5 ------- Run | Scr Mat Min Exi Min Mat Gar Mat Gar Fac Gar Fac Gar Fac Low Low Dat Pro Fac Ext Cet Arc Hub Robot Analysis Total 2 | . . . . . . . . . . . . . 1 . . . . . 1 . . . Derelict Logs Recovered 6 | . . . . 3 . . . . . . . . . 1 1 . 1 . . . . . Drone Launches . | . . . . . . . . . . . . . . . . . . . . . . . Drone Recoveries . | . . . . . . . . . . . . . . . . . . . . . . . Exploration | -11 -10 -10 -10 -9 -8 -8 -8 -8 -7 -7 -7 -7 -6 -6 -6 -6 -5 -5 -5 -5 -5 -5 ------------- Run | Scr Mat Min Exi Min Mat Gar Mat Gar Fac Gar Fac Gar Fac Low Low Dat Pro Fac Ext Cet Arc Hub Turns Passed 28444 | 79 583 39 371 671 1307 359 1238 1050 678 1257 1896 746 7620 2010 1260 132 2145 2286 698 688 155 1176 Spaces Moved 13616 | 42 298 25 231 401 592 186 630 537 334 580 882 380 3163 1193 708 82 1238 986 354 309 71 394 Core 17 | 17 . . . . . . . . . . . . . . . . . . . . . . Treads 13599 | 25 298 25 231 401 592 186 630 537 334 580 882 380 3163 1193 708 82 1238 986 354 309 71 394 Legs . | . . . . . . . . . . . . . . . . . . . . . . . Wheels . | . . . . . . . . . . . . . . . . . . . . . . . Hover . | . . . . . . . . . . . . . . . . . . . . . . . Flight . | . . . . . . . . . . . . . . . . . . . . . . . Fastest Speed 50 | 50 160 160 160 160 156 156 150 155 155 155 155 161 161 162 162 162 162 162 160 160 160 160 Average Speed 160 | 136 160 160 160 160 156 156 154 155 155 155 159 161 162 162 162 162 162 163 160 160 160 160 Slowest Speed 200 | 200 160 160 160 160 160 156 156 155 155 155 177 161 166 162 162 162 162 185 166 160 160 160 Overloaded Moves . | . . . . . . . . . . . . . . . . . . . . . . . Propulsion Burnouts . | . . . . . . . . . . . . . . . . . . . . . . . Robots Hopped . | . . . . . . . . . . . . . . . . . . . . . . . Cave-ins Triggered 1 | . . . . . . . . . . . 1 . . . . . . . . . . . Exploration Rate (%) 56 | 5 47 9 62 74 53 41 59 74 8 79 23 61 72 97 77 71 97 34 57 88 93 28 Regions Visited 22 Branch Regions 11 Pre-discovered Areas 3 | . . . . 1 . . . . . . . . . 1 . 1 . . . . . . Known Exits Taken 18 | 1 1 1 1 1 1 . 1 . 1 . 1 . 1 1 1 1 1 1 1 1 1 . Unknown Exits Taken . | . . . . . . . . . . . . . . . . . . . . . . . Scrap Searched 10 | . . . . 1 . . . . . . . . . 2 2 . 5 . . . . . Spaces Dug 4 | . . . . . . 4 . . . . . . . . . . . . . . . . Terrain Destroyed 1804 | . . . . . 43 4 189 7 10 61 99 15 396 4 21 . 31 265 131 283 44 201 Melee . | . . . . . . . . . . . . . . . . . . . . . . . Projectile 52 | . . . . . . . 22 7 10 7 . . . . . . . . . . . 6 AOE 1752 | . . . . . 43 4 167 . . 54 99 15 396 4 21 . 31 265 131 283 44 195 Terrain Rammed . | . . . . . . . . . . . . . . . . . . . . . . . Walls Destroyed . | . . . . . . . . . . . . . . . . . . . . . . . Machines Disabled . | . . . . . . . . . . . . . . . . . . . . . . . Actions | -11 -10 -10 -10 -9 -8 -8 -8 -8 -7 -7 -7 -7 -6 -6 -6 -6 -5 -5 -5 -5 -5 -5 --------- Run | Scr Mat Min Exi Min Mat Gar Mat Gar Fac Gar Fac Gar Fac Low Low Dat Pro Fac Ext Cet Arc Hub Total 17453 | 63 369 24 234 431 858 221 792 668 413 768 1184 440 4489 1239 775 81 1337 1461 419 407 86 694 Wait 1492 | 3 31 . . 24 142 . 37 55 11 25 162 . 494 11 15 . 46 286 9 30 . 111 Move 13597 | 41 297 24 230 400 592 185 630 536 334 579 881 379 3162 1192 707 81 1237 985 353 308 70 394 Hop . | . . . . . . . . . . . . . . . . . . . . . . . Pick Up 57 | 9 3 . 1 3 1 1 11 . . 1 . . 20 3 . . . . . . . 4 Fast Attach 79 | 1 7 . . 1 12 . 6 2 6 12 10 . 1 1 1 . 4 11 1 . . 3 Attach 44 | 9 2 . 1 2 . 1 7 . . . 1 . 16 1 . . . . . . . 4 Detach 1 | . . . . . 1 . . . . . . . . . . . . . . . . . Swap 6 | . . . . . 2 . . . . . . . 4 . . . . . . . . . Drop 101 | . 7 . 2 1 11 1 11 1 6 14 9 . 13 1 1 . 4 12 2 . . 5 Fire 1207 | . 17 . . . 55 18 44 28 40 63 75 32 526 8 21 . 18 85 23 39 10 105 Melee 55 | . . . . . . . . 17 . . 2 1 . 11 . . 2 14 8 . . . Ram . | . . . . . . . . . . . . . . . . . . . . . . . Kick . | . . . . . . . . . . . . . . . . . . . . . . . Crush . | . . . . . . . . . . . . . . . . . . . . . . . Escape Stasis 2 | . . . . . . 1 . . . . 1 . . . . . . . . . . . Rewire 131 | . . . . . . . . . . 23 1 12 70 . 8 . . 14 . . 1 2 Trap 55 | . . . . . 14 3 17 2 . . 1 . . . . . 14 1 . . . 3 Miscellaneous 626 | . 5 . . . 28 11 29 27 16 51 41 16 183 11 22 . 12 53 23 30 5 63 Route ------- -11/Scrapyard -10/Materials (discovered 3 exits: *Mat x2 / *Min) -10/Mines -10/Exiles (discovered 2 exits: *Min x2) -9/Mines -8/Materials (discovered 3 exits: *Fac x2 / Gar) -8/Garrison -8/Materials (discovered 4 exits: *Fac x3 / Gar) -8/Garrison (discovered 2 exits: *Fac x2) -7/Factory -7/Garrison (discovered 2 exits: *Fac x2) -7/Factory (discovered 3 exits: Low x2 / Gar) -7/Garrison (discovered 2 exits: *Fac x2) -6/Factory (discovered 9 exits: *Fac x4 / *Low x2 / Gar / Gar / Gar) -6/Lower Caves -6/Lower Caves (discovered 2 exits: *Fac / *Dat) -6/Data Miner -5/Proximity Caves -5/Factory (discovered 8 exits: *Fac x4 / Upp x2 / *Ext x2) -5/Extension (discovered 3 exits: *Fac x2 / *Cet) -5/Cetus (discovered 2 exits: *Fac / *Arc) -5/Archives (discovered 2 exits: *Fac / *Hub) -5/Hub_04(d) (discovered 4 exits: Fac x4) History --------- Turn | Location | Event 1 | -11/Scrapyard | Upgraded with Power slot (x1) 1 | -11/Scrapyard | Upgraded with Propulsion slot (x3) 1 | -11/Scrapyard | Upgraded with Utility slot (x2) 1 | -11/Scrapyard | Upgraded with Weapon slot (x2) 2 | -11/Scrapyard | Met Revision 17 8 | -11/Scrapyard | Identified exit to Materials 8 | -11/Scrapyard | Discovered exit to Materials (range 16) 80 | -11/Scrapyard | Entered Materials 146 | -10/Materials | Identified exit to Materials 146 | -10/Materials | Discovered exit to Materials (range 16) 147 | -10/Materials | Identified exit to Mines 147 | -10/Materials | Discovered exit to Mines (range 9) 473 | -10/Materials | Discovered exit to Materials (range 16) 663 | -10/Materials | Entered Mines 692 | -10/Mines | Deemed a non-threat by the Exiles lab entrance 694 | -10/Mines | Identified exit to Exiles 694 | -10/Mines | Discovered exit to Exiles (range 5) 702 | -10/Mines | Entered Exiles 723 | -10/Exiles | Build established: Hacker-Gunner 738 | -10/Exiles | Identified exit to Mines 738 | -10/Exiles | Discovered exit to Mines (range 14) 762 | -10/Exiles | Met 8R-AWN 789 | -10/Exiles | Met EX-HEX 840 | -10/Exiles | Met EX-BIN 859 | -10/Exiles | Reached level 2 859 | -10/Exiles | Aligned with FarCom system 861 | -10/Exiles | Given EX-Vault access code 899 | -10/Exiles | Opened EX-Vault 911 | -10/Exiles | Found PSU Rigger 947 | -10/Exiles | Warned to stay clear of 0b10 Research branches 995 | -10/Exiles | Met EX-DEC 1054 | -10/Exiles | Discovered exit to Mines (range 12) 1073 | -10/Exiles | Left Exiles lab with PSU Rigger 1073 | -10/Exiles | Entered Mines 1096 | -9/Mines | Learned location of Zion (-7) 1173 | -9/Mines | Learned Materials trap positions 1201 | -9/Mines | A weapon hastily lodged in a ceiling crevice suddenly fell to the ground 1246 | -9/Mines | Found a hidden stash of uninstalled traps 1417 | -9/Mines | Met a Derelict who couldn't figure out how to use a Trap Extractor 1550 | -9/Mines | Received a Rocket Launcher from a helpful Derelict 1696 | -9/Mines | Identified exit to Materials 1696 | -9/Mines | Discovered exit to Materials (range 5) 1744 | -9/Mines | Entered Materials 1745 | -8/Materials | Loaded intel: 11 trap records 1746 | -8/Materials | Reached level 3 1746 | -8/Materials | Reached level 4 1746 | -8/Materials | Reached level 5 1746 | -8/Materials | Reached level 6 1748 | -8/Materials | Upgraded with Utility slot (x1) 2087 | -8/Materials | Reached level 7 2091 | -8/Materials | Upgraded with Weapon slot (x1) 2263 | -8/Materials | Identified exit to Factory 2263 | -8/Materials | Discovered exit to Factory (range 5) 2426 | -8/Materials | Discovered exit to Factory (range 14) 2564 | -8/Materials | Reached level 8 3019 | -8/Materials | Garrison activated, responded to threat 3051 | -8/Materials | Identified exit to Garrison 3051 | -8/Materials | Entered Garrison 3053 | -8/Garrison | Reached level 9 3059 | -8/Garrison | Installed Relay Interface Framework 3059 | -8/Garrison | Upgraded with Weapon slot (x1) 3092 | -8/Garrison | Triggered checkpoint 3120 | -8/Garrison | Garrison Relay disabled 3206 | -8/Garrison | Triggered checkpoint 3212 | -8/Garrison | Reached level 10 3246 | -8/Garrison | Triggered checkpoint 3320 | -8/Garrison | Triggered checkpoint 3344 | -8/Garrison | Garrison Relay disabled 3398 | -8/Garrison | Identified exit to Materials 3398 | -8/Garrison | Discovered exit to Materials (range 9) 3410 | -8/Garrison | Entered Materials 3664 | -8/Materials | Reached level 11 3676 | -8/Materials | Upgraded with Utility slot (x1) 3841 | -8/Materials | Discovered exit to Factory (range 15) 4275 | -8/Materials | Reached level 12 4284 | -8/Materials | Discovered exit to Factory (range 9) 4421 | -8/Materials | Discovered exit to Factory (range 3) 4648 | -8/Materials | Identified exit to Garrison 4648 | -8/Materials | Entered Garrison 4656 | -8/Garrison | Expanded RIF knowledge: Coupler Efficiency 4710 | -8/Garrison | Triggered checkpoint 4758 | -8/Garrison | Triggered checkpoint 4790 | -8/Garrison | Triggered checkpoint 4896 | -8/Garrison | Triggered checkpoint 4932 | -8/Garrison | Garrison Relay disabled 4944 | -8/Garrison | Triggered checkpoint 5040 | -8/Garrison | Discovered exit to Factory (range 13) 5128 | -8/Garrison | Triggered checkpoint 5128 | -8/Garrison | Reached level 13 5176 | -8/Garrison | Triggered checkpoint 5285 | -8/Garrison | Garrison Relay disabled 5584 | -8/Garrison | Triggered checkpoint 5584 | -8/Garrison | Build established: Hacker-Mutant 5634 | -8/Garrison | Garrison Relay disabled 5681 | -8/Garrison | Discovered exit to Factory (range 12) 5698 | -8/Garrison | Entered Factory 5700 | -7/Factory | Reached level 14 6339 | -7/Factory | Garrison activated, responded to threat 6347 | -7/Factory | Reached level 15 6376 | -7/Factory | Identified exit to Garrison 6376 | -7/Factory | Entered Garrison 6432 | -7/Garrison | Build established: Hacker-Gunner 6455 | -7/Garrison | Phase Generator disabled 6511 | -7/Garrison | Triggered checkpoint 6710 | -7/Garrison | Triggered checkpoint 6773 | -7/Garrison | Destroyed 9 combat bots 6838 | -7/Garrison | Reached level 16 6919 | -7/Garrison | Triggered checkpoint 6967 | -7/Garrison | Identified exit to Factory 6967 | -7/Garrison | Discovered exit to Factory (range 10) 7058 | -7/Garrison | Triggered checkpoint 7111 | -7/Garrison | Triggered checkpoint 7166 | -7/Garrison | Triggered checkpoint 7316 | -7/Garrison | Garrison Relay disabled 7448 | -7/Garrison | Discovered exit to Factory (range 10) 7458 | -7/Garrison | Triggered checkpoint 7564 | -7/Garrison | Expanded RIF knowledge: Coupler Efficiency 7633 | -7/Garrison | Entered Factory 7716 | -7/Factory | Allied Derelicts emerged from ambush trap array 8002 | -7/Factory | Identified exit to Lower Caves 8027 | -7/Factory | Garrison activated, responded to threat 8027 | -7/Factory | Reached level 17 8086 | -7/Factory | Crushed by falling debris 9081 | -7/Factory | Upgraded with Utility slot (x1) 9113 | -7/Factory | Build established: Hacker-Gladiator 9422 | -7/Factory | Fabricated M-13 Machinist (x1) 9529 | -7/Factory | Identified exit to Garrison 9529 | -7/Factory | Entered Garrison 9538 | -7/Garrison | Expanded RIF knowledge: Command Fork 9586 | -7/Garrison | Triggered checkpoint 9622 | -7/Garrison | Garrison Relay disabled 9744 | -7/Garrison | Triggered checkpoint 9792 | -7/Garrison | Triggered checkpoint 9818 | -7/Garrison | Triggered checkpoint 9860 | -7/Garrison | Identified exit to Factory 9860 | -7/Garrison | Discovered exit to Factory (range 14) 9928 | -7/Garrison | Garrison Relay disabled 10044 | -7/Garrison | Build established: Hacker-Gunner 10182 | -7/Garrison | Triggered checkpoint 10223 | -7/Garrison | Garrison Relay disabled 10223 | -7/Garrison | Reached level 18 10259 | -7/Garrison | Discovered exit to Factory (range 9) 10275 | -7/Garrison | Entered Factory 10275 | -6/Factory | Accompanied by 1 ally 10520 | -6/Factory | Identified exit to Lower Caves 10562 | -6/Factory | Garrison activated, responded to threat 10615 | -6/Factory | Identified exit to Garrison 10877 | -6/Factory | Reached level 19 11295 | -6/Factory | Garrison activated, responded to threat 11585 | -6/Factory | Repaired Broken Adv. Treads 11677 | -6/Factory | Garrison activated, responded to threat 12066 | -6/Factory | Garrison activated, responded to threat 12220 | -6/Factory | Identified exit to Garrison 12314 | -6/Factory | Identified exit to Factory 12314 | -6/Factory | Discovered exit to Factory (range 6) 12353 | -6/Factory | System corruption reached 10% 13787 | -6/Factory | Reached level 20 15203 | -6/Factory | Discovered exit to Factory (range 16) 15360 | -6/Factory | Fabricated System Backup Module (x2) 15488 | -6/Factory | Local fabrication network quarantined 15642 | -6/Factory | Spotted B-75 Beast 15651 | -6/Factory | Destroyed B-75 Beast 16752 | -6/Factory | Discovered exit to Factory (range 16) 16995 | -6/Factory | Reached level 21 17007 | -6/Factory | Repaired Lgt. Nuclear Core? 17617 | -6/Factory | Identified exit to Garrison 17895 | -6/Factory | Entered Lower Caves 18276 | -6/Lower Caves | Identified exit to Lower Caves 18276 | -6/Lower Caves | Discovered exit to Lower Caves (range 15) 18426 | -6/Lower Caves | Learned location of 1 exit from Research 18426 | -6/Lower Caves | Learned Factory security intel 18527 | -6/Lower Caves | Learned Factory trap positions 19905 | -6/Lower Caves | Entered another Lower Caves area 19954 | -6/Lower Caves | Discovered exit to Factory (range 7) 20055 | -6/Lower Caves | Encountered a Warlord checkpoint 20435 | -6/Lower Caves | Attracted the attention of an 0b10 base 20462 | -6/Lower Caves | Destroyed 11 combat bots 20683 | -6/Lower Caves | Identified exit to Data Miner 21165 | -6/Lower Caves | Entered Data Miner 21165 | -6/Data Miner | Identified exit to Proximity Caves 21165 | -6/Data Miner | Discovered exit to Proximity Caves (range 6) 21196 | -6/Data Miner | Met Data Miner 21232 | -6/Data Miner | Learned location of Section 7 (-2) 21232 | -6/Data Miner | Acquired the access code to Warlord's prototype stash 21258 | -6/Data Miner | Received God Mode back door access code from Data Miner 21297 | -6/Data Miner | Entered Proximity Caves 21317 | -5/Proximity Caves | Escorted by Enhanced Grunt 21319 | -5/Proximity Caves | Reached level 22 22574 | -5/Proximity Caves | Discovered exit to Factory (range 8) 22625 | -5/Proximity Caves | Attracted the attention of an 0b10 checkpoint 22638 | -5/Proximity Caves | Learned Factory emergency access door positions 23442 | -5/Proximity Caves | Entered Factory 23442 | -5/Factory | Accompanied by 1 ally 23443 | -5/Factory | Loaded intel: 102 trap records 23472 | -5/Factory | Identified exit to Upper Caves 23472 | -5/Factory | Identified exit to Extension 23492 | -5/Factory | Incoming investigation squad redirected 23945 | -5/Factory | Incoming investigation squad redirected 23961 | -5/Factory | Incoming investigation squad redirected 24367 | -5/Factory | Reached level 23 24380 | -5/Factory | P-70 Sage assimilated allied Sentinel 6a 24466 | -5/Factory | Identified exit to Factory 24914 | -5/Factory | Fabricated M-28 Smith (x1) 24942 | -5/Factory | First assault squad dispatched 24969 | -5/Factory | Incoming assault squad redirected 25009 | -5/Factory | Fabricated G-67 Veteran (x3) 25074 | -5/Factory | Destroyed 7 combat bots 25261 | -5/Factory | Incoming assault squad redirected 25728 | -5/Factory | Entered Extension 26013 | -5/Extension | Rescued a captive Derelict 26014 | -5/Extension | Rescued a captive Derelict 26049 | -5/Extension | Rescued a captive Derelict 26118 | -5/Extension | Rescued a captive Derelict 26119 | -5/Extension | Rescued a captive Derelict 26151 | -5/Extension | Spotted B-75 Beast 26164 | -5/Extension | Allies destroyed B-75 Beast 26166 | -5/Extension | Spotted B-75 Beast 26177 | -5/Extension | Destroyed B-75 Beast 26184 | -5/Extension | Reached level 24 26238 | -5/Extension | Discovered exit to Factory (range 3) 26328 | -5/Extension | Disrupted transfer network 26402 | -5/Extension | Identified exit to Cetus 26402 | -5/Extension | Discovered exit to Cetus (range 16) 26405 | -5/Extension | Discovered exit to Factory (range 14) 26426 | -5/Extension | Entered Cetus 26426 | -5/Cetus | Accompanied by 2 allies 26450 | -5/Cetus | Spotted Cetus Guard 26450 | -5/Cetus | Spotted Cetus Guard 26452 | -5/Cetus | Spotted Cetus Guard 26453 | -5/Cetus | Spotted Cetus Guard 26460 | -5/Cetus | Destroyed Cetus Guard 26468 | -5/Cetus | Destroyed Cetus Guard 26476 | -5/Cetus | Destroyed Cetus Guard 26487 | -5/Cetus | Destroyed Cetus Guard 26790 | -5/Cetus | Cetus Manufacturing Module disabled 26959 | -5/Cetus | Identified exit to Archives 26959 | -5/Cetus | Discovered exit to Archives (range 15) 26993 | -5/Cetus | Spotted Cetus Guard 26994 | -5/Cetus | Spotted Cetus Guard 27007 | -5/Cetus | Spotted Cetus Guard 27009 | -5/Cetus | Destroyed Cetus Guard 27013 | -5/Cetus | Spotted Cetus Guard 27025 | -5/Cetus | Destroyed Cetus Guard 27029 | -5/Cetus | Destroyed Cetus Guard 27034 | -5/Cetus | Destroyed Cetus Guard 27042 | -5/Cetus | Discovered exit to Factory (range 15) 27050 | -5/Cetus | Met Revision 17 27114 | -5/Cetus | Entered Archives 27156 | -5/Archives | Met Zhirov 27162 | -5/Archives | Reinforcements dispatched to Archives 27167 | -5/Archives | Unable to access archive contents 27194 | -5/Archives | Discovered exit to Factory (range 15) 27207 | -5/Archives | Reinforcements dispatched to Archives 27209 | -5/Archives | Zhirov warped through subspace 27227 | -5/Archives | Zhirov detonated Archives 27228 | -5/Archives | Core integrity fell below 50% 27249 | -5/Archives | Identified exit to Hub_04(d) 27249 | -5/Archives | Discovered exit to Hub_04(d) (range 12) 27269 | -5/Archives | Entered Hub_04(d) 27544 | -5/Hub_04(d) | Garrison activated, responded to threat 27569 | -5/Hub_04(d) | First assault squad dispatched 27590 | -5/Hub_04(d) | Incoming assault squad redirected 27889 | -5/Hub_04(d) | Spotted B-75 Beast 28088 | -5/Hub_04(d) | Garrison activated, responded to threat 28151 | -5/Hub_04(d) | Reached level 25 28186 | -5/Hub_04(d) | Core integrity fell below 20% 28200 | -5/Hub_04(d) | Destroyed B-75 Beast 28357 | -5/Hub_04(d) | Network Hub disabled 28366 | -5/Hub_04(d) | Spotted Lightning 28366 | -5/Hub_04(d) | Spotted Lightning 28366 | -5/Hub_04(d) | Spotted Lightning 28375 | -5/Hub_04(d) | Spotted Lightning 28377 | -5/Hub_04(d) | Spotted Lightning 28390 | -5/Hub_04(d) | Garrison activated, responded to threat 28399 | -5/Hub_04(d) | Spotted Lightning 28402 | -5/Hub_04(d) | Destroyed Lightning 28414 | -5/Hub_04(d) | System corruption reached 10% 28428 | -5/Hub_04(d) | Destroyed Lightning 28445 | -5/Hub_04(d) | Destroyed by Lightning with EMDS Last Messages --------------- 28430_ Overheating: System interference. 28430_ System Backup Module temporarily disabled. 28430_ Imp. Targeting Computer temporarily disabled. 28431_ Slug penetrates Lightning. 28432_ Penetrated by EMDS Slug. 28432_ Critical hit. 28432_ Penetrated by EMDS Slug. 28433_ EMDS Slug penetrates Wall. 28434_ System corrupted: Gauss Rifle targeting data glitched. 28434_ Slug penetrates Lightning. 28434_ Penetrated by EMDS Slug. 28437_ Slug penetrates Lightning. 28438_ Penetrated by EMDS Slug. 28439_ EMDS Slug penetrates Wall. 28439_ Critical hit. 28439_ Penetrated by EMDS Slug. 28440_ Critical hit. 28440_ Hvy. Laser destroyed. 28440_ Slug penetrates Lightning. 28445_ Penetrated by EMDS Slug. Map ----- +----------------------------------------------------+ | ???# ] """ #?# # #! [] #???# | | ???# #?# + / # %[ ##### | | ???##########?# # # * " " | | ??????????????# #"""" #"""" ##### | | ??????????????#!#"""" #"""" % #???# | | ??????????????#*#"""" #"""" #???# | | ??????????????# #"""" # #???# | | ??????????????#=# # ! "T=[#???# | | ??????????????#*# #########+##### | | ??????????????#%########## *%! | | ????#######"""""#????????# """ """ """ | | ????# [[**"????????# | | ????# [*"????????# " """ """ | | ????" = ="????????# | | ?? ; ="????????"##"""######### | | ?? ; #????????" #????????? | | ?# ; = #??????? " #????????? | | ?# ; =#?????? " #????????? | | ? ; * #????? " #????????? | | # ; #????? "# ##????????? | | ? ; = = #???? ;# ?????????? | | ;;;;;%;""##??? ;#* ?????????? | | #;;; ;;;*= ???? ;#%!#?????????? | | ; !==% ;#####*%;;;;;#*%=?????????? | | # =**=%*%==*!!%==!#### [ #????????? | | ; ==;|= *%@^!^==* % ??????? | | ; ** ; %[=[%!%h=]* ??????? | | # *=*%;;;; !##[h!=! # #????????? | | #!* *=!;;* hgh##%!^ #"# #?????????? | | #=% / ! #; [=[g#?%[*[= #"?#??????????? | | # = [|##%!! ! #! #???????????? | | # %|=## * "" #???????????? | | # !%[## "" """ ###???????????? | | # * ## "" "T / ????????????? | | # " " ## ! "# """ # "???????????? | | # " " " ##;;""""# "" #?"???????????? | | # ## #? ????????????????? | | # " " " ###### #? ????????????????? | | # " " " #?????###?#####???????????????? | | # " " " #?????????????????????????????? | | # #?????????????????????????????? | | ##########?????????????????????????????? | | ???????????????????????????????????????? | | ???????????????????????????????????????? | | ???????????????????????????????????????? | | ???????????????????????????????????????? | | ???????????????????????????????????????? | | ???????????????????????????????????????? | | ???????????????????????????????????????? | | ???????????????????????????????????????? | +----------------------------------------------------+ Best States ------------- Heat Dissipation 103 Energy Generation 57 Energy Capacity 650 Matter Stores 600 Matter Capacity 600 Sight Range 16 Terrain Scan Density 10 Armor Coverage 300 Resistance: KI 50 Resistance: TH 55 Resistance: EX 55 Resistance: EM 35 Resistance: I 35 Resistance: S 35 Resistance: P 35 Utility Shielding 66 Evasion (%) 50 Targeting Accuracy 18 Recoil Reduction 4 Particle Charging 20 Kinecelleration 30 Offensive Hacking 35 Defensive Hacking 5 Item Schematics ----------------- Field Propulsion Drive | -7/Factory | Hacked System Backup Module | -6/Factory | Hacked Combat Drone Bay | -6/Data Miner | Free Lgt. Regenerative Plating | -6/Data Miner | Free Exp. Cesium-ion Thruster | -6/Data Miner | Free Triangulator | -6/Data Miner | Free Exp. Sensor Array | -6/Data Miner | Free Exp. Targeting Computer | -6/Data Miner | Free Hyp. Coil Gun | -5/Factory | Hacked Robot Schematics ------------------ M-13 Machinist | -7/Factory | Hacked M-28 Smith | -6/Factory | Hacked S-27 Virus | -6/Data Miner | Free G-50 Soldier | -6/Data Miner | Free G-67 Veteran | -6/Data Miner | Free I-36 Angel | -6/Data Miner | Free I-47 Archangel | -6/Data Miner | Free T-07 Excavator | -5/Factory | Hacked Fabricated ------------ M-13 Machinist | x1 | -7/Factory System Backup Module | x2 | -6/Factory M-28 Smith | x1 | -5/Factory G-67 Veteran | x3 | -5/Factory Alien Tech Used ----------------- None Achievements -------------- Dramatic Entrance Explorer Infiltrator Maybe Next Time I'll Detach My Launcher Quick And Dirty Revising The Future Treasure Hunter Challenges ------------ None RPGLIKE | -11 -10 -10 -10 -9 -8 -8 -8 -8 -7 -7 -7 -7 -6 -6 -6 -6 -5 -5 -5 -5 -5 -5 --------- Run | Scr Mat Min Exi Min Mat Gar Mat Gar Fac Gar Fac Gar Fac Low Low Dat Pro Fac Ext Cet Arc Hub Levels Raised 24 | . . . 1 . 6 2 2 1 2 1 1 1 3 . . . 1 1 1 . . 1 XP Earned 42171 | 6000 755 500 350 843 9366 2750 2374 1519 2585 2585 1310 615 4655 178 415 105 1036 2179 608 402 281 760 XP Spent 41740 | 5975 . . 1475 . 7550 4485 2975 1500 1320 2990 1700 1395 4530 . . . 1600 1425 . . 1500 1320 Upgrades 103 | 11 . . 11 . 16 10 4 3 6 5 1 9 12 . . . 3 5 . . 3 4 Power Slot 1 | 1 . . . . . . . . . . . . . . . . . . . . . . Propulsion Slot 3 | 3 . . . . . . . . . . . . . . . . . . . . . . Utility Slot 5 | 2 . . . . 1 . 1 . . . 1 . . . . . . . . . . . Weapon Slot 4 | 2 . . . . 1 1 . . . . . . . . . . . . . . . . Core Integrity 33 | 1 . . . . 4 4 . . . . . 9 4 . . . 2 5 . . . 4 Heat Dissipation 13 | . . . 6 . . . . . 6 1 . . . . . . . . . . . . Energy Generation 4 | . . . . . . . . . . 4 . . . . . . . . . . . . Energy Storage 1 | . . . . . . . . . . . . . . . . . . . . . 1 . Matter Storage 6 | . . . 2 . . 3 1 . . . . . . . . . . . . . . . Inventory Capacity 3 | 1 . . . . . . 2 . . . . . . . . . . . . . . . Ranged Accuracy 8 | . . . . . 6 . . . . . . . 1 . . . 1 . . . . . Hack Attack % 3 | . . . . . . . . . . . . . 3 . . . . . . . . . Hack Defense % 1 | . . . . . . . . . . . . . 1 . . . . . . . . . KI Resistance % 3 | . . . 1 . . . . . . . . . 1 . . . . . . . 1 . TH Resistance % 4 | . . . 1 . . . . . . . . . 2 . . . . . . . 1 . EX Resistance % 4 | . . . 1 . 3 . . . . . . . . . . . . . . . . . KI Damage % 4 | 1 . . . . 1 2 . . . . . . . . . . . . . . . . TH Damage % 3 | . . . . . . . . 3 . . . . . . . . . . . . . . Protomatter Created 8056 | . 31 . . . 488 299 486 328 233 754 583 246 2113 140 211 . 223 494 130 374 162 761 Integrity Restored 13023 | . 88 . . . 566 188 535 550 296 1055 811 326 3930 234 434 . 209 1089 483 657 108 1464 Core 10125 | . 50 . . . 394 146 365 404 154 797 612 256 2811 234 262 . 140 893 378 657 108 1464 Parts 2898 | . 38 . . . 172 42 170 146 142 258 199 70 1119 . 172 . 69 196 105 . . . Protomatter Decayed 3704 | . . . . . 244 220 208 133 87 425 387 95 596 36 161 . 407 350 168 47 . 140 Game ------ Seed ContainmentSurgeSteel Manual? 0 Play Time 04:36:44 Cumulative 52.7 hours Start 2021.04.03 @ 21:23:58 End 2021.04.05 @ 10:14:59 Sessions 1 Manual Loads 0 Difficulty Explorer Special Mode Winter2019/RPGLIKE Game No. 18 Rogue 0 Adventurer 0 Explorer 18 Win Type - Total 2 Types 0/0/0/2/0/0/0/0/0 Lore% 42 Gallery% 36 Achievement% 42 Wizard Run 0 Options --------- ASCII 0 Keyboard 0 Movement Mouse Keybinds 0 Fullscreen 2 Font 18/SmallcapsGlow Map View 76x50 Tactical HUD 1 Map Filters NONE Filters NONE Steam 1 RUN: c29f3708-d92a-4713-84a7-b8003015daa6